fUSD/lending_fUSD_20251130
["ID","MTS","AMOUNT","RATE_DAILY","PERIOD"]
[395157436,1764490245164,-500.0,0.00016438,2]
[395157437,1764490245173,-500.0,0.00016438,2]
[395157438,1764490245182,-500.0,0.00016438,2]
[395157439,1764490245192,-500.0,0.00016438,2]
[395157440,1764490245201,-500.0,0.00016438,2]
[395157441,1764490245210,-500.0,0.00016438,2]
[395157442,1764490245220,-500.0,0.00016438,2]
[395157443,1764490245229,-500.0,0.00016438,2]
[395157444,1764490245238,-450.0,0.00016438,2]
[395157445,1764490245248,-500.0,0.00016438,2]
[395157446,1764490245257,-500.0,0.00016438,2]
[395157447,1764490245266,-500.0,0.00016438,2]
[395157448,1764490245276,-500.0,0.00016438,2]
[395157449,1764490245285,-500.0,0.00016438,2]
[395157450,1764490245296,-500.0,0.00016438,2]
[395157451,1764490245306,-500.0,0.00016438,2]
[395157452,1764490245315,-500.0,0.00016438,2]
[395157453,1764490245325,-500.0,0.00016438,2]
[395157454,1764490245334,-500.0,0.00016438,2]
[395157455,1764490245343,-500.0,0.00016438,2]
[395157456,1764490245353,-500.0,0.00016438,2]
[395157458,1764490245362,-500.0,0.00016438,2]
[395157459,1764490245372,-192.79221301,0.00016438,2]
[395157460,1764490245381,-500.0,0.00016438,2]
[395157462,1764490245391,-500.0,0.00016438,2]
[395157464,1764490245401,-500.0,0.00016438,2]
[395157466,1764490245411,-500.0,0.00016438,2]
[395157467,1764490245420,-500.0,0.00016438,2]
[395157468,1764490245429,-500.0,0.00016438,2]
[395157469,1764490245438,-150.0,0.00016438,2]
[395157470,1764490245447,-800.0,0.00016438,2]
[395157471,1764490245457,-736.0,0.00016491,2]
[395157472,1764490245466,-208.75,0.00016498,2]
[395157473,1764490245476,-1001.57760606,0.00016521,2]
[395157474,1764490245485,-916.80275832,0.00016521,2]
[395157475,1764490245494,-1000.745763,0.00016521,2]
[395157476,1764490245504,-1001.35128612,0.00016521,2]
[395157477,1764490245513,-1000.0,0.00016521,2]
[395157478,1764490245523,-1000.0,0.00016521,2]
[395157479,1764490245533,-505.74952757,0.00016521,2]
[395157480,1764490245542,-995.14510969,0.00016521,2]
[395157481,1764490245552,-193.94586418,0.00016521,2]
[395157482,1764490245561,-1002.56103431,0.00016521,2]
[395157483,1764490245571,-1000.0,0.00016521,2]
[395157484,1764490245580,-1000.0,0.00016521,2]
[395157485,1764490245589,-696.8967906,0.00016521,2]
[395157486,1764490245598,-1000.0,0.00016521,2]
[395157487,1764490245607,-1000.0,0.00016521,2]
[395157488,1764490245617,-1018.43163791,0.00016521,2]
[395157489,1764490245627,-1000.0,0.00016521,2]
[395157490,1764490245636,-512.61581703,0.00016521,2]
[395157491,1764490245645,-150.0,0.00016521,2]
[395157492,1764490245655,-500.0,0.00016521,2]
[395157493,1764490245664,-500.0,0.00016575,2]
[395157494,1764490245674,-150.0,0.00016575,2]
[395157495,1764490245683,-552.02,0.00016578,2]
[395157496,1764490245694,-150.0,0.00016578,2]
[395157497,1764490245703,-552.02,0.00016578,2]
[395157498,1764490245713,-150.0,0.00016578,2]
[395157499,1764490245722,-552.02,0.00016578,2]
[395157500,1764490245731,-150.0,0.00016578,2]
[395157502,1764490245741,-150.0,0.00016578,2]
[395157503,1764490245750,-150.0,0.00016578,2]
[395157504,1764490245761,-150.0,0.00016578,2]
[395157505,1764490245771,-150.0,0.00016578,2]
[395157506,1764490245780,-1000.0,0.000166,2]
[395157507,1764490245790,-1956.0,0.00016654,2]
[395157509,1764490245799,-150.0,0.00016658,2]
[395157510,1764490245808,-500.0,0.00016658,2]
[395157511,1764490245818,-166.66,0.00016689,2]
[395157512,1764490245827,-500.0,0.00016712,2]
[395157513,1764490245836,-179.75220737,0.00016712,2]
[395157514,1764490245846,-237.3246584,0.00016713,2]
[395157515,1764490245855,-14540.15201756,0.00016743,2]
[395157516,1764490245865,-11713.65969035,0.00016744,2]
[395157517,1764490245874,-150.54642357,0.00016795,2]
[395157518,1764490245884,-500.0,0.00016795,2]
[395157519,1764490245896,-1784.0,0.000168,2]
[395157520,1764490245905,-587.40757822,0.00016814,2]
[395157521,1764490245916,-222.74986184,0.00016821,2]
[395157522,1764490245927,-235.20482,0.0001683,2]
[395157523,1764490245936,-500.0,0.00016849,2]
[395157524,1764490245945,-823.0,0.00016861,2]
[395157525,1764490245955,-200.0,0.00016863,2]
[395157527,1764490245967,-200.0,0.00016864,2]
[395157529,1764490245976,-200.0,0.00016864,2]
[395157530,1764490245986,-200.0,0.00016864,2]
[395157531,1764490245996,-200.0,0.00016864,2]
[395157532,1764490246005,-574.12855637,0.00016881,2]
[395157533,1764490246015,-1000.0,0.00016881,2]
[395157534,1764490246024,-666.72878,0.00016881,2]
[395157535,1764490246033,-151.8981321,0.00016881,2]
[395157536,1764490246042,-1188.45239257,0.0001689,2]
[395157537,1764490246051,-500.0,0.00016899,2]
[395157538,1764490246061,-500.0,0.00016899,2]
[395157539,1764490246070,-500.0,0.00016899,2]
[395157540,1764490246080,-500.0,0.00016899,2]
[395157541,1764490246090,-500.0,0.00016899,2]
[395157542,1764490246099,-509.31705516,0.00016899,2]
[395157543,1764490246109,-500.0,0.00016899,2]
[395157544,1764490246119,-641.47208077,0.00016899,2]
[395157545,1764490246128,-500.0,0.00016899,2]
[395157546,1764490246137,-181.30501265,0.00016899,2]
[395157547,1764490246147,-500.0,0.00016899,2]
[395157548,1764490246156,-500.0,0.00016899,2]
[395157549,1764490246165,-500.0,0.00016899,2]
[395157550,1764490246174,-500.0,0.00016899,2]
[395157551,1764490246184,-510.07916645,0.00016899,2]
[395157552,1764490246193,-10000.0,0.000169,2]
[395157553,1764490246203,-1234.1868656,0.000169,2]
[395157554,1764490246214,-1644.74030778,0.000169,2]
[395157555,1764490246223,-1600.0,0.00016912,2]
[395157556,1764490246233,-500.0,0.00016932,2]
[395157557,1764490246242,-1956.0,0.00016936,2]
[395157558,1764490246251,-235.20483,0.0001695,2]
[395157559,1764490246261,-151.0,0.00016957,2]
[395157560,1764490246270,-1347.0,0.00016959,2]
[395157561,1764490246280,-500.0,0.00016959,2]
[395157562,1764490246290,-500.0,0.00016959,2]
[395157563,1764490246299,-287028.8134504,0.0001696,2]
[395157565,1764490246308,-500.0,0.00016973,2]
[395157566,1764490246317,-500.0,0.00016973,2]
[395157567,1764490246327,-500.0,0.00016973,2]
[395157568,1764490246336,-500.0,0.00016973,2]
[395157569,1764490246345,-500.0,0.00016973,2]
[395157572,1764490246464,-500.0,0.00016973,2]
[395157574,1764490246474,-500.0,0.00016973,2]
[395157575,1764490246483,-176.66973248,0.00016973,2]
[395157577,1764490246492,-500.838144,0.00016973,2]
[395157578,1764490246501,-500.0,0.00016973,2]
[395157580,1764490246511,-500.0,0.00016973,2]
[395157581,1764490246520,-500.49965341,0.00016973,2]
[395157582,1764490246529,-500.0,0.00016973,2]
[395157583,1764490246538,-500.0,0.00016973,2]
[395157584,1764490246547,-500.0,0.00016973,2]
[395157585,1764490246561,-167.3210545,0.00016973,2]
[395157586,1764490246580,-500.0,0.00016973,2]
[395157587,1764490246589,-500.0,0.00016973,2]
[395157588,1764490246598,-502.42313954,0.00016973,2]
[395157589,1764490246608,-366.95471126,0.00016973,2]
[395157590,1764490246617,-500.0,0.00016973,2]
[395157591,1764490246627,-162.090508,0.00016973,2]
[395157592,1764490246636,-507.2295556,0.00016973,2]
[395157593,1764490246646,-500.0,0.00016973,2]
[395157594,1764490246655,-500.0,0.00016973,2]
[395157595,1764490246664,-500.0,0.00016973,2]
[395157596,1764490246673,-500.0,0.00016973,2]
[395157597,1764490246682,-172.99922432,0.00016973,2]
[395157598,1764490246691,-187.03419553,0.00016973,2]
[395157599,1764490246700,-500.0,0.00016973,2]
[395157600,1764490246709,-500.38978168,0.00016973,2]
[395157601,1764490246719,-500.0,0.00016973,2]
[395157602,1764490246728,-500.0,0.00016973,2]
[395157603,1764490246737,-415.54250471,0.00016973,2]
[395157604,1764490246746,-500.0,0.00016973,2]
[395157605,1764490246755,-500.0,0.00016973,2]
[395157606,1764490246764,-500.0,0.00016973,2]
[395157607,1764490246773,-222.29257723,0.00016978,2]
[395157608,1764490246783,-200.16875991,0.00016983,2]
[395157609,1764490246792,-500.0,0.00016986,2]
[395157610,1764490246802,-246.57118594,0.0001699,2]
[395157611,1764490246811,-151.0,0.00016997,2]
[395157612,1764490246820,-151.0,0.00016997,2]
[395157613,1764490246830,-500.0,0.00016998,2]
[395157614,1764490246839,-300.0,0.00016999,2]
[395157615,1764490246848,-519.32805224,0.00016999,2]
[395157616,1764490246857,-500.0,0.00016999,2]
[395157617,1764490246867,-500.0,0.00016999,2]
[395157618,1764490246878,-500.0,0.00016999,2]
[395157619,1764490246891,-500.0,0.00016999,2]
[395157620,1764490246901,-522.79968162,0.00016999,2]
[395157621,1764490246911,-500.0,0.00016999,2]
[395157622,1764490246921,-500.0,0.00016999,2]
[395157623,1764490246932,-500.0,0.00016999,2]
[395157624,1764490246942,-500.0,0.00016999,2]
[395157625,1764490246952,-621.79084846,0.00016999,2]
[395157626,1764490246962,-219.97289193,0.00016999,2]
[395157627,1764490246972,-500.0,0.00016999,2]
[395157628,1764490246982,-500.0,0.00016999,2]
[395157629,1764490246991,-500.0,0.00016999,2]
[395157630,1764490247000,-500.0,0.00016999,2]
[395157631,1764490247009,-500.0,0.00016999,2]
[395157632,1764490247018,-500.0,0.00016999,2]
[395157633,1764490247027,-500.0,0.00016999,2]
[395157634,1764490247036,-500.0,0.00016999,2]
[395157635,1764490247046,-509.39630906,0.00016999,2]
[395157636,1764490247055,-500.0,0.00016999,2]
[395157637,1764490247064,-500.0,0.00016999,2]
[395157638,1764490247073,-500.0,0.00016999,2]
[395157639,1764490247083,-500.0,0.00016999,2]
[395157640,1764490247092,-500.0,0.00016999,2]
[395157641,1764490247101,-500.0,0.00016999,2]
[395157642,1764490247111,-500.0,0.00016999,2]
[395157643,1764490247119,-562.09588733,0.00016999,2]
[395157644,1764490247128,-500.0,0.00016999,2]
[395157645,1764490247137,-524.40679433,0.00016999,2]
[395157646,1764490247147,-458.00390684,0.00016999,2]
[395157647,1764490247156,-500.0,0.00016999,2]
[395157648,1764490247165,-500.0,0.00016999,2]
[395157649,1764490247174,-500.0,0.00016999,2]
[395157650,1764490247185,-500.0,0.00016999,2]
[395157651,1764490247195,-500.0,0.00016999,2]
[395157652,1764490247204,-500.0,0.00016999,2]
[395157653,1764490247214,-349.68798238,0.00016999,2]
[395157654,1764490247225,-500.0,0.00016999,2]
[395157655,1764490247234,-173.88347713,0.00016999,2]
[395157656,1764490247243,-500.0,0.00016999,2]
[395157657,1764490247254,-500.0,0.00016999,2]
[395157658,1764490247263,-500.0,0.00016999,2]
[395157659,1764490247273,-556.83585957,0.00016999,2]
[395157660,1764490247282,-500.0,0.00016999,2]
[395157661,1764490247292,-648.97949028,0.00016999,2]
[395157662,1764490247302,-500.0,0.00016999,2]
[395157663,1764490247312,-512.38673853,0.00016999,2]
[395157664,1764490247322,-500.0,0.00016999,2]
[395157665,1764490247331,-500.0,0.00016999,2]
[395157666,1764490247341,-500.0,0.00016999,2]
[395157667,1764490247351,-500.0,0.00016999,2]
[395157668,1764490247360,-500.0,0.00016999,2]
[395157669,1764490247369,-500.0,0.00016999,2]
[395157670,1764490247378,-500.0,0.00016999,2]
[395157671,1764490247388,-500.0,0.00016999,2]
[395157672,1764490247398,-500.0,0.00016999,2]
[395157673,1764490247407,-500.0,0.00016999,2]
[395157674,1764490247417,-500.0,0.00016999,2]
[395157675,1764490247427,-2425546.87649919,0.00017,2]
[395157676,1764490247436,-160.0,0.00017,2]
[395157677,1764490247446,-7012.42730083,0.00017,2]
[395157678,1764490247455,-250.0,0.00017,2]
[395157679,1764490247464,-250.0,0.00017,2]
[395157680,1764490247473,-250.0,0.00017,2]
[395157681,1764490247482,-250.0,0.00017,2]
[395157682,1764490247491,-250.0,0.00017,2]
[395157683,1764490247500,-250.0,0.00017,2]
[395157684,1764490247511,-250.0,0.00017,2]
[395157685,1764490247519,-250.0,0.00017,2]
[395157686,1764490247529,-250.0,0.00017,2]
[395157687,1764490247538,-250.0,0.00017,2]
[395157688,1764490247550,-250.0,0.00017,2]
[395157689,1764490247559,-250.0,0.00017,2]
[395157690,1764490247571,-250.0,0.00017,2]
[395157691,1764490247581,-250.0,0.00017,2]
[395157692,1764490247591,-250.0,0.00017,2]
[395157693,1764490247600,-250.0,0.00017,2]
[395157694,1764490247609,-250.0,0.00017,2]
[395157695,1764490247619,-250.0,0.00017,2]
[395157696,1764490247628,-250.0,0.00017,2]
[395157697,1764490247638,-250.0,0.00017,2]
[395157698,1764490247648,-250.0,0.00017,2]
[395157699,1764490247657,-250.0,0.00017,2]
[395157700,1764490247666,-250.0,0.00017,2]
[395157701,1764490247675,-250.0,0.00017,2]
[395157702,1764490247684,-250.0,0.00017,2]
[395157703,1764490247693,-250.0,0.00017,2]
[395157704,1764490247702,-250.0,0.00017,2]
[395157705,1764490247711,-250.0,0.00017,2]
[395157706,1764490247720,-250.0,0.00017,2]
[395157707,1764490247729,-250.0,0.00017,2]
[395157708,1764490247738,-250.0,0.00017,2]
[395157709,1764490247747,-250.0,0.00017,2]
[395157710,1764490247756,-250.0,0.00017,2]
[395157711,1764490247765,-250.0,0.00017,2]
[395157712,1764490247775,-250.0,0.00017,2]
[395157713,1764490247784,-250.0,0.00017,2]
[395157714,1764490247793,-250.0,0.00017,2]
[395157715,1764490247802,-250.0,0.00017,2]
[395157716,1764490247811,-250.0,0.00017,2]
[395157717,1764490247820,-368.8,0.00017,2]
[395157718,1764490247829,-2000.0,0.00017,2]
[395157719,1764490247839,-8854.0526568,0.00017,2]
[395157720,1764490247848,-8252.4892869,0.00017,2]
[395157721,1764490247857,-1248.56965651,0.00017,2]
[395157722,1764490247866,-200.0,0.00017,2]
[395157723,1764490247875,-1095.0,0.00017,2]
[395157724,1764490247889,-3292.0,0.00017004,2]
[395157725,1764490247899,-150.0,0.00017004,2]
[395157726,1764490247908,-1956.0,0.00017015,2]
[395157727,1764490247918,-1846.0,0.00017049,2]
[395157728,1764490247929,-1500.0,0.00017068,2]
[395157729,1764490247938,-1002.84705647,0.00017068,2]
[395157730,1764490247947,-1500.0,0.00017068,2]
[395157731,1764490247958,-1500.0,0.00017068,2]
[395157732,1764490247967,-207.48162006,0.00017068,2]
[395157733,1764490247979,-1500.0,0.00017068,2]
[395157734,1764490247988,-1500.0,0.00017068,2]
[395157735,1764490247998,-500.0,0.00017069,2]
[395157736,1764490248007,-1846.0,0.00017084,2]
[395157737,1764490248018,-1846.0,0.00017122,2]
[395157738,1764490248028,-284.96640709,0.00017123,2]
[395157739,1764490248037,-578.20924308,0.00017154,2]
[395157740,1764490248048,-151.0,0.00017154,2]
[395157741,1764490248058,-311.1,0.00017154,2]
[395157742,1764490248067,-163.27944846,0.00017154,2]
[395157743,1764490248076,-267.46074303,0.00017154,2]
[395157744,1764490248086,-1846.0,0.00017157,2]
[395157745,1764490248095,-200.0,0.0001717,2]
[395157746,1764490248104,-275.99,0.0001717,2]
[395157747,1764490248114,-298.83,0.00017197,2]
[395157748,1764490248124,-500.0,0.00017206,2]
[395157749,1764490248135,-235.20482,0.0001721,2]
[395157750,1764490248146,-2087.0,0.00017321,2]
[395157751,1764490248156,-200.0,0.00017342,2]
[395157752,1764490248165,-217.04067786,0.00017343,2]
[395157753,1764490248174,-2087.0,0.00017364,2]
[395157754,1764490248184,-200.08513291,0.000174,2]
[395157755,1764490248194,-595.37131296,0.00017429,2]
[395157756,1764490248203,-1000.0,0.00017429,2]
[395157757,1764490248213,-579.42029305,0.00017429,2]
[395157758,1764490248222,-235.20483,0.0001745,2]
[395157759,1764490248231,-1956.0,0.00017493,2]
[395157760,1764490248240,-208.75,0.00017497,2]
[395157761,1764490248249,-200.0,0.00017515,2]
[395157762,1764490248258,-339.26563356,0.00017521,2]
[395157763,1764490248269,-1040.53867105,0.00017521,2]
[395157764,1764490248279,-1000.0,0.00017521,2]
[395157765,1764490248289,-1000.0,0.00017521,2]
[395157766,1764490248299,-1000.0,0.00017521,2]
[395157767,1764490248308,-500.75968259,0.00017521,2]
[395157768,1764490248317,-1000.0,0.00017521,2]
[395157769,1764490248326,-1000.0,0.00017521,2]
[395157770,1764490248336,-1000.0,0.00017521,2]
[395157771,1764490248345,-1000.0,0.00017521,2]
[395157772,1764490248356,-1116.40948711,0.00017521,2]
[395157773,1764490248367,-1000.0,0.00017521,2]
[395157774,1764490248377,-232.40806133,0.00017521,2]
[395157775,1764490248388,-1000.0,0.00017521,2]
[395157776,1764490248398,-1000.0,0.00017521,2]
[395157777,1764490248407,-1000.0,0.00017521,2]
[395157778,1764490248419,-506.58830205,0.00017521,2]
[395157779,1764490248428,-166.09514249,0.00017521,2]
[395157780,1764490248437,-1000.0,0.00017521,2]
[395157781,1764490248447,-1000.0,0.00017521,2]
[395157782,1764490248459,-1000.0,0.00017521,2]
[395157783,1764490248468,-1000.0,0.00017521,2]
[395157784,1764490248478,-783.77865719,0.00017521,2]
[395157785,1764490248489,-885.86372501,0.00017521,2]
[395157786,1764490248498,-1000.0,0.00017521,2]
[395157787,1764490248508,-14540.15201756,0.00017532,2]
[395157788,1764490248517,-11713.65969035,0.00017533,2]
[395157789,1764490248527,-772.98303428,0.00017534,2]
[395157790,1764490248536,-2087.0,0.00017563,2]
[395157791,1764490248546,-2087.0,0.00017568,2]
[395157792,1764490248555,-190.81942377,0.00017616,2]
[395157793,1764490248566,-2000.0,0.00017616,2]
[395157794,1764490248576,-2000.0,0.00017616,2]
[395157795,1764490248586,-2000.0,0.00017616,2]
[395157796,1764490248597,-2000.0,0.00017616,2]
[395157797,1764490248605,-1956.0,0.00017632,2]
[395157798,1764490248615,-427.55165138,0.00017637,2]
[395157799,1764490248625,-2087.0,0.00017644,2]
[395157800,1764490248634,-2087.0,0.0001765,2]
[395157801,1764490248644,-235.20482,0.000177,2]
[395157802,1764490248653,-1956.0,0.0001776,2]
[395157803,1764490248662,-275.99820203,0.00017779,2]
[395157804,1764490248674,-1956.0,0.00017883,2]
[395157805,1764490248684,-1956.0,0.00017888,2]
[395157806,1764490248694,-1252.0,0.00017907,2]
[395157807,1764490248704,-1956.0,0.00017932,2]
[395157808,1764490248714,-1956.0,0.00017936,2]
[395157809,1764490248723,-235.20483,0.0001795,2]
[395157810,1764490248732,-752.13358325,0.00017977,2]
[395157811,1764490248741,-1000.0,0.00017977,2]
[395157812,1764490248751,-1956.0,0.00017985,2]
[395157813,1764490248760,-266.78017722,0.00018,2]
[395157814,1764490248769,-298.83,0.00018015,2]
[395157815,1764490248778,-1000.0,0.00018018,2]
[395157816,1764490248787,-6925.85900991,0.0001804,2]
[395157817,1764490248796,-500.0,0.00018068,2]
[395157818,1764490248805,-1319.78821702,0.00018068,2]
[395157819,1764490248814,-1500.0,0.00018068,2]
[395157820,1764490248823,-1500.0,0.00018068,2]
[395157821,1764490248832,-1500.0,0.00018068,2]
[395157822,1764490248842,-783.85684935,0.00018068,2]
[395157823,1764490248851,-1002.08828695,0.00018068,2]
[395157824,1764490248860,-1078.69635007,0.00018068,2]
[395157825,1764490248871,-1500.0,0.00018068,2]
[395157826,1764490248883,-1500.0,0.00018068,2]
[395157827,1764490248895,-1331.33630207,0.00018068,2]
[395157828,1764490248904,-1500.0,0.00018068,2]
[395157829,1764490248914,-1500.0,0.00018068,2]
[395157830,1764490248925,-1500.0,0.00018068,2]
[395157831,1764490248934,-1617.0612163,0.00018068,2]
[395157832,1764490248943,-1500.0,0.00018068,2]
[395157833,1764490248952,-1500.0,0.00018068,2]
[395157834,1764490248963,-1000.0,0.00018082,2]
[395157835,1764490248972,-2500.0,0.00018164,2]
[395157836,1764490248982,-2500.0,0.00018164,2]
[395157837,1764490248992,-1964.79820142,0.00018164,2]
[395157838,1764490249003,-545.13032417,0.00018164,2]
[395157839,1764490249012,-2087.0,0.00018187,2]
[395157840,1764490249021,-500.0,0.000182,2]
[395157841,1764490249032,-157.50894088,0.00018218,2]
[395157842,1764490249041,-2087.0,0.00018231,2]
[395157843,1764490249050,-766.93269615,0.00018255,2]
[395157844,1764490249059,-14540.15201756,0.00018321,2]
[395157845,1764490249068,-11713.65969035,0.00018322,2]
[395157846,1764490249077,-34300.9,0.00018356,2]
[395157847,1764490249088,-1152.0,0.00018495,2]
[395157848,1764490249098,-599.60298507,0.00018523,2]
[395157849,1764490249108,-151.0,0.00018523,2]
[395157850,1764490249119,-322.6107,0.00018523,2]
[395157851,1764490249130,-277.35679052,0.00018523,2]
[395157852,1764490249138,-599.60298507,0.00018524,2]
[395157853,1764490249147,-1000.0,0.00018525,2]
[395157854,1764490249156,-4242.54,0.00018538,2]
[395157855,1764490249165,-333.47522152,0.000186,2]
[395157856,1764490249173,-500.0,0.00018616,2]
[395157857,1764490249183,-500.0,0.00018616,2]
[395157858,1764490249192,-1060.10385674,0.00018616,2]
[395157859,1764490249200,-2000.0,0.00018616,2]
[395157860,1764490249210,-2000.0,0.00018616,2]
[395157861,1764490249219,-615.0167694,0.00018616,2]
[395157862,1764490249228,-500.0,0.00018616,2]
[395157863,1764490249237,-500.0,0.00018616,2]
[395157864,1764490249246,-2000.0,0.00018616,2]
[395157865,1764490249256,-500.0,0.00018638,2]
[395157866,1764490249265,-208.75,0.00018663,2]
[395157867,1764490249275,-4609.0,0.00018704,2]
[395157868,1764490249285,-3000.0,0.00018712,2]
[395157869,1764490249295,-1012.94453899,0.00018712,2]
[395157870,1764490249306,-150.0,0.00018715,2]
[395157871,1764490249314,-150.0,0.00018715,2]
[395157872,1764490249323,-150.0,0.00018715,2]
[395157873,1764490249333,-150.0,0.00018715,2]
[395157874,1764490249344,-150.0,0.00018715,2]
[395157875,1764490249353,-150.0,0.00018715,2]
[395157876,1764490249363,-150.0,0.00018715,2]
[395157877,1764490249372,-245.89851421,0.00018715,2]
[395157878,1764490249381,-150.0,0.00018715,2]
[395157879,1764490249389,-150.0,0.00018715,2]
[395157880,1764490249399,-151.04072084,0.00018715,2]
[395157881,1764490249408,-150.0,0.00018715,2]
[395157882,1764490249417,-150.0,0.00018715,2]
[395157883,1764490249426,-150.0,0.00018715,2]
[395157884,1764490249435,-500.0,0.0001874,2]
[395157885,1764490249444,-1000.0,0.0001876,2]
[395157886,1764490249453,-500.0,0.00018772,2]
[395157887,1764490249463,-287028.8134504,0.00018772,2]
[395157888,1764490249471,-150.0,0.00018789,2]
[395157889,1764490249482,-1600.0,0.00018791,2]
[395157890,1764490249492,-150.72,0.000188,2]
[395157891,1764490249502,-150.0,0.00018819,2]
[395157892,1764490249512,-208.75,0.00018831,2]
[395157893,1764490249523,-298.83,0.00018834,2]
[395157894,1764490249532,-150.0,0.00018845,2]
[395157895,1764490249541,-150.0,0.00018864,2]
[395157896,1764490249550,-150.0,0.00018864,2]
[395157897,1764490249558,-150.0,0.00018875,2]
[395157898,1764490249567,-150.0,0.00018923,2]
[395157899,1764490249576,-150.0,0.00018923,2]
[395157900,1764490249586,-150.0,0.00018938,2]
[395157901,1764490249594,-150.0,0.00018975,2]
[395157902,1764490249603,-150.0,0.00018975,2]
[395157903,1764490249613,-500.0,0.00018999,2]
[395157904,1764490249622,-500.0,0.00018999,2]
[395157905,1764490249631,-500.0,0.00018999,2]
[395157906,1764490249641,-500.0,0.00018999,2]
[395157907,1764490249650,-500.0,0.00018999,2]
[395157908,1764490249658,-191.9483848,0.00018999,2]
[395157909,1764490249667,-54670.98052011,0.00019,2]
[395157910,1764490249677,-3584.81628149,0.00019,2]
[395157911,1764490249686,-300.0,0.00019,2]
[395157912,1764490249695,-1104.0536043,0.00019,2]
[395157913,1764490249704,-355.75200295,0.0001901,7]
[395157914,1764490249713,-150.0,0.00019012,2]
[395157915,1764490249722,-150.0,0.00019012,2]
[395157916,1764490249731,-150.0,0.00019027,2]
[395157917,1764490249740,-150.0,0.00019035,2]
[395157918,1764490249749,-1000.0,0.00019073,2]
[395157919,1764490249758,-150.0,0.00019086,2]
[395157920,1764490249767,-150.0,0.00019105,2]
[395157921,1764490249776,-14540.15201756,0.00019111,2]
[395157922,1764490249785,-11713.65969035,0.00019111,2]
[395157923,1764490249794,-150.0,0.00019131,2]
[395157924,1764490249802,-150.0,0.00019131,2]
[395157925,1764490249811,-8252.4892869,0.00019148,2]
[395157926,1764490249820,-150.0,0.00019161,2]
[395157927,1764490249830,-150.0,0.00019161,2]
[395157928,1764490249840,-596.43313874,0.00019164,2]
[395157929,1764490249849,-150.54892794,0.00019164,2]
[395157930,1764490249858,-325.7457569,0.00019164,2]
[395157931,1764490249867,-3003.55406229,0.00019178,2]
[395157932,1764490249875,-151.0,0.00019178,2]
[395157933,1764490249888,-20020.74,0.00019178,2]
[395157934,1764490249903,-1258.0,0.00019179,2]
[395157935,1764490249912,-640.0,0.00019179,2]
[395157936,1764490249921,-909.0,0.00019179,2]
[395157937,1764490249930,-1193.0,0.00019179,2]
[395157938,1764490249939,-2718.0,0.00019179,2]
[395157939,1764490249948,-309.552,0.00019179,2]
[395157940,1764490249958,-6506.0,0.00019179,2]
[395157941,1764490249972,-150.0,0.00019195,4]
[395157942,1764490249981,-512.90563522,0.00019208,2]
[395157943,1764490249990,-150.0,0.00019235,4]
[395157944,1764490249999,-150.0,0.00019235,4]
[395157945,1764490250007,-150.0,0.00019235,4]
[395157946,1764490250017,-150.0,0.00019235,4]
[395157947,1764490250026,-150.0,0.00019235,4]
[395157948,1764490250035,-150.0,0.00019235,4]
[395157949,1764490250044,-1512.86322879,0.0001926,2]